Workbook

Sheet паспорт
A1: ПАТ "УКРТРАНСГАЗ" | G1: ПАСПОРТ ФІЗИКО-ХІМІЧНИХ ПОКАЗНИКІВ ПРИРОДНОГО ГАЗУ № 602
A2: Філія "УМГ "ХАРКІВТРАНСГАЗ" | G2: переданого п/м КС Борова Первомайського ЛВУМГ філії "УМГ "Харківтрансгаз" та прийнятого ПАТ "Луганськгаз"
A3: п/м КС Борова Первомайське ЛВУМГ | G3: Маршрут № 602
A4: Вимірювальна хіміко-аналітична лабораторія
A5: Свідоцтво про атестацію № 100-037/2013 дійсне до 24.10.2017 р. | K5: по газопроводу "НОВОПСКОВ-ШЕБЕЛИНКА" | V5: за період з | X5: 2017-03-01 | Z5: по | AA5: 2017-03-31
A7: Число місяця | B7: Компонентний склад, % мол. | N7: Фізико-хімічні показники газу обчислені на основі компонентного складу, 101,325 кПа | X7: Температура точки роси за вологою (Р = 3.92 МПа), °С | Y7: Температура точки роси за вуглеводнями, °С | Z7: Вміст сірководню, г/м3 | AA7: Вміст меркаптанової сірки, г/м3 | AB7: Вміст механічних домішок, г/м3
N8: Густина абсолютна, кг/м3,при 20 ºС, | O8: Температура вимірювання/згоряння при 20/25°С
B9: метан, С₁ | C9: етан, С₂ | D9: пропан, С₃ | E9: ізо-бутан, і-С₄ | F9: н-бутан, н-С₄ | G9: нео-пентан, нео-С₅ | H9: ізо-пентан, і-С₅ | I9: н-пентан, н-С₅ | J9: гексани та вищі, С₆₊ | K9: кисень, О₂ | L9: азот, N₂ | M9: діоксид вуглецю, CО₂ | O9: Теплота згоряння нижча | R9: Теплота згоряння вища | U9: Число Воббе вище
O10: ккал/м³ | P10: МДж/м³ | Q10: кВт⋅год/м³ | R10: ккал/м³ | S10: МДж/м³ | T10: кВт⋅год/м³ | U10: ккал/м³ | V10: МДж/м³ | W10: кВт⋅год/м³
A11: 1 | B11: 87.0426 | C11: 3.6767 | D11: 2.3255 | E11: 0.403 | F11: 0.5649 | G11: 0.0073 | H11: 0.149 | I11: 0.0796 | J11: 0.0649 | K11: 0.0118 | L11: 4.8657 | M11: 0.8088 | N11: 0.7753 | O11: =P11*238.8459 -> 8305.555673 | P11: 34.7737 | Q11: =P11/3.6 -> 9.659361111 | R11: =S11*238.8459 -> 9186.586544 | S11: 38.4624 | T11: =S11/3.6 -> 10.684 | U11: =V11*238.8459 -> 11450.22468 | V11: 47.9398 | W11: =V11/3.6 -> 13.31661111 | AC11: =SUM(B11:M11)+$K$42+$N$42 -> 99.9998
A12: 2 | O12: =P12*238.8459 -> 8305.555673 | P12: 34.7737 | Q12: 9.659361111 | R12: =S12*238.8459 -> 9186.586544 | S12: 38.4624 | T12: 10.684 | AC12: 0
A13: 3 | B13: 87.8448 | C13: 3.5239 | D13: 2.1208 | E13: 0.3688 | F13: 0.5449 | G13: 0.0069 | H13: 0.1627 | I13: 0.0884 | J13: 0.06 | K13: 0.0112 | L13: 4.2014 | M13: 1.0662 | N13: 0.7711 | O13: 8297.219951 | P13: 34.7388 | Q13: 9.649666667 | R13: 9178.895706 | S13: 38.4302 | T13: 10.67505556 | U13: =V13*238.8459 -> 11471.64915 | V13: 48.0295 | W13: 13.34152778 | AC13: 100 | AD13: =IF(AC13=100,"ОК"," ") -> ОК
A14: 4 | O14: 8297.219951 | P14: 34.7388 | Q14: 9.649666667 | R14: 9178.895706 | S14: 38.4302 | T14: 10.67505556 | AC14: 0 | AD14: =IF(AC14=100,"ОК"," ") -> 
A15: 5 | O15: 8297.219951 | P15: 34.7388 | Q15: 9.649666667 | R15: 9178.895706 | S15: 38.4302 | T15: 10.67505556 | AC15: 0
A16: 6 | B16: 87.0925 | C16: 3.6245 | D16: 2.1237 | E16: 0.3687 | F16: 0.5316 | G16: 0.0069 | H16: 0.1526 | I16: 0.089 | J16: 0.0583 | K16: 0.0124 | L16: 5.1337 | M16: 0.8062 | N16: 0.7728 | O16: 8244.482776 | P16: 34.518 | Q16: 9.588333333 | R16: 9120.330692 | S16: 38.185 | T16: 10.60694444 | U16: 11385.76017 | V16: 47.6699 | W16: 13.24163889 | AC16: 100.0001
A17: 7 | O17: 8244.482776 | P17: 34.518 | Q17: 9.588333333 | R17: 9120.330692 | S17: 38.185 | T17: 10.60694444 | AC17: 0
A18: 8 | O18: 8244.482776 | P18: 34.518 | Q18: 9.588333333 | R18: 9120.330692 | S18: 38.185 | T18: 10.60694444 | AC18: 0
A19: 9 | O19: 8244.482776 | P19: 34.518 | Q19: 9.588333333 | R19: 9120.330692 | S19: 38.185 | T19: 10.60694444 | AC19: 0
A20: 10 | B20: 87.6488 | C20: 3.3825 | D20: 2.0979 | E20: 0.4136 | F20: 0.5805 | G20: 0.0072 | H20: 0.1564 | I20: 0.0887 | J20: 0.0554 | K20: 0.0105 | L20: 4.3299 | M20: 1.2287 | N20: 0.7737 | O20: 8274.386283 | P20: 34.6432 | Q20: 9.623111111 | R20: 9153.578041 | S20: 38.3242 | T20: 10.64561111 | U20: 11420.94217 | V20: 47.8172 | W20: 13.28255556 | AC20: 100.0001
A21: 11 | O21: 8274.386283 | P21: 34.6432 | Q21: 9.623111111 | R21: 9153.578041 | S21: 38.3242 | T21: 10.64561111 | AC21: 0
A22: 12 | O22: 8274.386283 | P22: 34.6432 | Q22: 9.623111111 | R22: 9153.578041 | S22: 38.3242 | T22: 10.64561111 | AC22: 0
A23: 13 | B23: 88.0021 | C23: 3.5634 | D23: 2.1107 | E23: 0.3643 | F23: 0.53 | G23: 0.0133 | H23: 0.1762 | I23: 0.1018 | J23: 0.0602 | K23: 0.0123 | L23: 4.2081 | M23: 0.8575 | N23: 0.7693 | O23: 8319.098235 | P23: 34.8304 | Q23: 9.675111111 | R23: 9202.971373 | S23: 38.531 | T23: 10.70305556 | U23: 11515.45349 | V23: 48.2129 | W23: 13.39247222 | AC23: 99.9999
A24: 14 | O24: 8319.098235 | P24: 34.8304 | Q24: 9.675111111 | R24: 9202.971373 | S24: 38.531 | T24: 10.70305556 | AC24: 0
A25: 15 | B25: 87.876 | C25: 3.6745 | D25: 2.4074 | E25: 0.4262 | F25: 0.5536 | G25: 0.0081 | H25: 0.1403 | I25: 0.0854 | J25: 0.0574 | K25: 0.0119 | L25: 4.0174 | M25: 0.7416 | N25: 0.7712 | O25: 8388.244123 | P25: 35.1199 | Q25: 9.755527778 | R25: 9277.968985 | S25: 38.845 | T25: 10.79027778 | U25: 11594.89364 | V25: 48.5455 | W25: 13.48486111 | AC25: 99.9998
A26: 16 | O26: 8388.244123 | P26: 35.1199 | Q26: 9.755527778 | R26: 9277.968985 | S26: 38.845 | T26: 10.79027778 | AC26: 0
A27: 17 | B27: 87.7919 | C27: 3.3771 | D27: 2.0992 | E27: 0.3956 | F27: 0.5541 | G27: 0.0078 | H27: 0.1463 | I27: 0.0775 | J27: 0.0603 | K27: 0.013 | L27: 4.5373 | M27: 0.94 | N27: 0.7702 | O27: 8268.582328 | P27: 34.6189 | Q27: 9.616361111 | R27: 9147.583009 | S27: 38.2991 | T27: 10.63863889 | U27: 11439.11834 | V27: 47.8933 | W27: 13.30369444 | AC27: 100.0001
A28: 18 | O28: 8268.582328 | P28: 34.6189 | Q28: 9.616361111 | R28: 9147.583009 | S28: 38.2991 | T28: 10.63863889 | AC28: 0
A29: 19 | O29: 8268.582328 | P29: 34.6189 | Q29: 9.616361111 | R29: 9147.583009 | S29: 38.2991 | T29: 10.63863889 | AC29: 0
A30: 20 | B30: 87.605 | C30: 3.5413 | D30: 2.3539 | E30: 0.4193 | F30: 0.5713 | G30: 0.0078 | H30: 0.1459 | I30: 0.0812 | J30: 0.0564 | K30: 0.0132 | L30: 4.4391 | M30: 0.7655 | N30: 0.7723 | O30: 8339.424021 | P30: 34.9155 | Q30: 9.69875 | R30: 9224.300312 | S30: 38.6203 | T30: 10.72786111 | U30: 11519.20337 | V30: 48.2286 | W30: 13.39683333 | AC30: 99.9999 | AD30: =IF(AC30=100,"ОК"," ") -> 
A31: 21 | O31: 8339.424021 | P31: 34.9155 | Q31: 9.69875 | R31: 9224.300312 | S31: 38.6203 | T31: 10.72786111 | AC31: 0
A32: 22 | B32: 87.2685 | C32: 3.7612 | D32: 2.5696 | E32: 0.4426 | F32: 0.5797 | G32: 0.0075 | H32: 0.1528 | I32: 0.0815 | J32: 0.0557 | K32: 0.0121 | L32: 4.6663 | M32: 0.4026 | N32: 0.7738 | O32: 8398.084574 | P32: 35.1611 | Q32: 9.766972222 | R32: 9287.546706 | S32: 38.8851 | T32: 10.80141667 | U32: 11587.60884 | V32: 48.515 | W32: 13.47638889 | AC32: 100.0001
A33: 23 | O33: 8398.084574 | P33: 35.1611 | Q33: 9.766972222 | R33: 9287.546706 | S33: 38.8851 | T33: 10.80141667 | AC33: 0 | AD33: =IF(AC33=100,"ОК"," ") -> 
A34: 24 | B34: 87.8076 | C34: 3.5413 | D34: 2.1502 | E34: 0.399 | F34: 0.6102 | G34: 0.0076 | H34: 0.1698 | I34: 0.0845 | J34: 0.054 | K34: 0.0133 | L34: 4.2551 | M34: 0.9074 | N34: 0.7716 | O34: 8326.932381 | P34: 34.8632 | Q34: 9.684222222 | R34: 9211.068249 | S34: 38.5649 | T34: 10.71247222 | U34: =V34*238.8459 -> 11508.33588 | V34: 48.1831 | W34: 13.38419444 | AC34: 100 | AD34: ОК
A35: 25 | O35: =P35*238.8459 -> 8326.932381 | P35: 34.8632 | Q35: =P35/3.6 -> 9.684222222 | R35: =S35*238.8459 -> 9211.068249 | S35: 38.5649 | T35: =S35/3.6 -> 10.71247222 | AC35: 0
A36: 26 | O36: 8326.932381 | P36: 34.8632 | Q36: 9.684222222 | R36: 9211.068249 | S36: 38.5649 | T36: 10.71247222 | AC36: 0
A37: 27 | B37: 88.4847 | C37: 3.3806 | D37: 1.9393 | E37: 0.3402 | F37: 0.5149 | G37: 0.0081 | H37: 0.1772 | I37: 0.1064 | J37: 0.0554 | K37: 0.0127 | L37: 3.8647 | M37: 1.1158 | N37: 0.7667 | O37: 8284.632772 | P37: 34.6861 | Q37: 9.635027778 | R37: 9166.308527 | S37: 38.3775 | T37: 10.66041667 | U37: 11489.03714 | V37: 48.1023 | W37: =V37/3.6 -> 13.36175 | AC37: 100 | AD37: ОК
A38: 28 | O38: 8284.632772 | P38: 34.6861 | Q38: 9.635027778 | R38: 9166.308527 | S38: 38.3775 | T38: 10.66041667 | AC38: 0
A39: 29 | B39: 87.7932 | C39: 3.6311 | D39: 2.2898 | E39: 0.3948 | F39: 0.5729 | G39: 0.0071 | H39: 0.1631 | I39: 0.1004 | J39: 0.0558 | K39: 0.0125 | L39: 4.0417 | M39: 0.9374 | N39: 0.7726 | O39: 8359.702038 | P39: 35.0004 | Q39: 9.722333333 | R39: 9246.727942 | S39: 38.7142 | T39: 10.75394444 | U39: 11545.52419 | V39: 48.3388 | W39: =V39/3.6 -> 13.42744444 | AC39: 99.9998
A40: 30 | O40: 8359.702038 | P40: 35.0004 | Q40: 9.722333333 | R40: 9246.727942 | S40: 38.7142 | T40: 10.75394444 | AC40: 0
A41: 31 | B41: 87.0505 | C41: 3.5874 | D41: 2.6147 | E41: 0.4832 | F41: 0.6309 | G41: 0.0084 | H41: 0.151 | I41: 0.0872 | J41: 0.0574 | K41: 0.0129 | L41: 4.1856 | M41: 1.1306 | N41: 0.7812 | O41: 8392.041773 | P41: 35.1358 | Q41: 9.759944444 | R41: 9280.33356 | S41: 38.8549 | T41: 10.79302778 | U41: 11523.52648 | V41: 48.2467 | W41: =V41/3.6 -> 13.40186111 | AC41: 99.9998
A42: Рівень одоризації відповідає чинним нормативним документам | O42: 8309.942802 | P42: 34.79206803 | Q42: 9.664463342 | R42: 9192.351624 | S42: 38.48653724 | T42: 10.69070479 | AD42: =AVERAGE(N11:N41) -> 0.7724461538 | AE42: =AVERAGE(O11:O41) -> 8311.639309
H43: Середньозважене значення теплоти згоряння:
B46: Головний інженер Первомайського ЛВУМГ | O46: Журавель І.В. | V46: 03.04.2017 р.
D47: Керівник підрозділу підприємства, якому підпорядкована лабораторія | O47: прізвище | R47: підпис | V47: дата
B48: Начальник лабораторії ПМ КС Борова Первомайського ЛВ УМГ | O48: Карапута В.М. | V48: =V46 -> 03.04.2017 р.
D49: Лабораторія, де здійснювались аналізи газу | O49: прізвище | R49: підпис | V49: дата
B50: Інженер І кат. групи газовимірювань та метрології | O50: Юрченко В.М. | V50: =V46 -> 03.04.2017 р.
D51: Метрологічна служба, яка визначає обсяги газу | O51: прізвище | R51: підпис | V51: дата

Sheet додаток
A2: Додаток до Паспорту фізико-хімічних показників природного газу №602
A4: Область | B4: ГРС, прямий споживач | C4: Cередньозважене значення вищої теплоти згоряння
C5: МДж/м³ | D5: ккал/м³ | E5: кВт*год./м³
A6: Луганська область | B6: ГРС с.Попівка | C6: 38.47856707 | D6: 9190.447983 | E6: 10.68849085
B7: ГРС с. Коноплянівка | C7: 38.48965906 | D7: 9193.097258 | E7: 10.69157196
B8: ГРС м. Сватове | C8: 38.48715861 | D8: 9192.500037 | E8: 10.69087739
B9: ГРС с.Коломийчиха | C9: 38.48673078 | D9: 9192.397851 | E9: 10.69075855
A10: Середньозважене значення вищої теплоти згоряння по маршруту № 602 | C10: 38.48653724 | D10: 9192.351624 | E10: 10.69070479
A13: Головний інженер Первомайського ЛВУМГ | C13: Журавель І.В. | E13: 03.04.2017 р.
A14: Керівник підрозділу підприємства, якому підпорядкована лабораторія | C14: прізвище | D14: підпис | E14: дата
A15: Начальник лабораторії ПМ КС Борова Первомайського ЛВ УМГ | C15: Карапута В.М. | E15: =E13 -> 03.04.2017 р.
A16: Лабораторія, де здійснювались аналізи газу | C16: прізвище | D16: підпис | E16: дата
A17: Інженер І кат. групи газовимірювань та метрології | C17: Юрченко В.М. | E17: =E13 -> 03.04.2017 р.
A18: Метрологічна служба, яка визначає обсяги газу | C18: прізвище | D18: підпис | E18: дата

Sheet variablesList (hidden)
A1: 3 | B1: x:\gaysin | C1: 10, 11, 24, 25, 127, 128, 132, 180, 207, 215 | D1: x:\
B2: x:\Illinci
B3: x:\Talne
